[Event "*** Titled Tuesday Blitz"]
[Site "Chess.com"]
[Date "2020.11.10"]
[Round "7"]
[White "Jenia84"]
[Black "Ariadna_Atreides"]
[Result "1-0"]
[WhiteElo "2319"]
[BlackElo "2104"]
[TimeControl "180+1"]
[EndTime "11:22:40 PST"]
[Termination "Jenia84 won on time"]

1. Nf3 {[%clk 0:03:00.9]} 1... d5 {[%clk 0:02:59.1]} 2. b3 {[%clk 0:03:01.8]}
2... c6 {[%clk 0:02:58.4]} 3. Bb2 {[%clk 0:02:55.6]} 3... Nf6 {[%clk 0:02:58]}
4. e3 {[%clk 0:02:55.7]} 4... Bg4 {[%clk 0:02:52.9]} 5. Be2 {[%clk 0:02:55.6]}
5... Nbd7 {[%clk 0:02:51]} 6. O-O {[%clk 0:02:56]} 6... e6 {[%clk 0:02:50]} 7.
Ne5 {[%clk 0:02:53.9]} 7... Bxe2 {[%clk 0:02:48.6]} 8. Qxe2 {[%clk 0:02:54.8]}
8... Nxe5 {[%clk 0:02:44.4]} 9. Bxe5 {[%clk 0:02:54]} 9... Bd6 {[%clk
0:02:44.7]} 10. f4 {[%clk 0:02:50]} 10... O-O {[%clk 0:02:43.3]} 11. d3 {[%clk
0:02:48.1]} 11... c5 {[%clk 0:02:21.7]} 12. Nd2 {[%clk 0:02:46.8]} 12... Qd7
{[%clk 0:02:03.4]} 13. Nf3 {[%clk 0:02:45.9]} 13... Ne8 {[%clk 0:02:01.9]} 14.
Bb2 {[%clk 0:02:31.6]} 14... f6 {[%clk 0:01:59.7]} 15. Qf2 {[%clk 0:02:31.7]}
15... Nc7 {[%clk 0:01:52.3]} 16. Rae1 {[%clk 0:02:29.5]} 16... Rae8 {[%clk
0:01:47.6]} 17. Qh4 {[%clk 0:02:29.7]} 17... Qf7 {[%clk 0:01:33.4]} 18. e4
{[%clk 0:02:25.4]} 18... d4 {[%clk 0:01:28.7]} 19. e5 {[%clk 0:02:25.5]} 19...
Be7 {[%clk 0:01:28]} 20. exf6 {[%clk 0:02:15]} 20... Bxf6 {[%clk 0:01:27.7]} 21.
Ng5 {[%clk 0:02:14.8]} 21... Qg6 {[%clk 0:01:15.8]} 22. Qg3 {[%clk 0:02:05]}
22... Bxg5 {[%clk 0:00:52.1]} 23. fxg5 {[%clk 0:02:04.6]} 23... Nd5 {[%clk
0:00:52.2]} 24. Rxf8+ {[%clk 0:01:53.9]} 24... Rxf8 {[%clk 0:00:50.2]} 25. Qe5
{[%clk 0:01:53.4]} 25... Ne3 {[%clk 0:00:43.9]} 26. h4 {[%clk 0:01:42.4]} 26...
Nxc2 {[%clk 0:00:34.1]} 27. Qxe6+ {[%clk 0:00:59.6]} 27... Qxe6 {[%clk
0:00:33.3]} 28. Rxe6 {[%clk 0:01:00]} 28... Nb4 {[%clk 0:00:33.3]} 29. Re7
{[%clk 0:00:50.5]} 29... Nxd3 {[%clk 0:00:33.1]} 30. Ba3 {[%clk 0:00:49.4]}
30... Rb8 {[%clk 0:00:29.6]} 31. Rc7 {[%clk 0:00:44.2]} 31... b6 {[%clk
0:00:22.5]} 32. Rxa7 {[%clk 0:00:38.6]} 32... Nf4 {[%clk 0:00:20.4]} 33. g3
{[%clk 0:00:37.9]} 33... Ne2+ {[%clk 0:00:18.8]} 34. Kf2 {[%clk 0:00:38]} 34...
Nc3 {[%clk 0:00:18.8]} 35. Bb2 {[%clk 0:00:37]} 35... Nb5 {[%clk 0:00:18.3]} 36.
Re7 {[%clk 0:00:34.9]} 36... Ra8 {[%clk 0:00:17.9]} 37. a4 {[%clk 0:00:33.2]}
37... Nd6 {[%clk 0:00:13]} 38. Re6 {[%clk 0:00:30.6]} 38... Rd8 {[%clk 0:00:11]}
39. Bc1 {[%clk 0:00:29.1]} 39... Kf7 {[%clk 0:00:10.1]} 40. Re1 {[%clk
0:00:26.8]} 40... Re8 {[%clk 0:00:09.8]} 41. Bf4 {[%clk 0:00:22.6]} 41... Rxe1
{[%clk 0:00:08.4]} 42. Kxe1 {[%clk 0:00:23.1]} 42... Ke6 {[%clk 0:00:08.7]} 43.
Ke2 {[%clk 0:00:20.6]} 43... Kd5 {[%clk 0:00:08.5]} 44. Kd3 {[%clk 0:00:20.6]}
44... g6 {[%clk 0:00:05.4]} 45. g4 {[%clk 0:00:19.9]} 45... Ne4 {[%clk
0:00:04.7]} 46. Bc7 {[%clk 0:00:19.2]} 46... Nf2+ {[%clk 0:00:04.6]} 47. Ke2
{[%clk 0:00:18.6]} 47... Nxg4 {[%clk 0:00:04]} 48. Bxb6 {[%clk 0:00:18.5]} 48...
Ne5 {[%clk 0:00:02.9]} 49. a5 {[%clk 0:00:18]} 1-0

[Event "*** Titled Tuesday Blitz"]
[Site "Chess.com"]
[Date "2020.11.10"]
[Round "7"]
[White "BJthechessgod"]
[Black "zurzan"]
[Result "1-0"]
[WhiteElo "2304"]
[BlackElo "2056"]
[TimeControl "180+1"]
[EndTime "11:22:42 PST"]
[Termination "BJthechessgod won by resignation"]

1. e4 {[%clk 0:03:00.9]} 1... Nf6 {[%clk 0:02:58.2]} 2. e5 {[%clk 0:03:01]} 2...
Nd5 {[%clk 0:02:58.4]} 3. d4 {[%clk 0:03:01.9]} 3... d6 {[%clk 0:02:58.3]} 4.
Nf3 {[%clk 0:03:02.8]} 4... g6 {[%clk 0:02:57.8]} 5. c4 {[%clk 0:03:00.1]} 5...
Nb6 {[%clk 0:02:57.3]} 6. Nc3 {[%clk 0:03:00.6]} 6... Bg7 {[%clk 0:02:56.3]} 7.
exd6 {[%clk 0:02:59.5]} 7... cxd6 {[%clk 0:02:57.2]} 8. Be3 {[%clk 0:02:59.1]}
8... O-O {[%clk 0:02:57]} 9. Be2 {[%clk 0:02:56.2]} 9... Bg4 {[%clk 0:02:56.5]}
10. b3 {[%clk 0:02:55.2]} 10... Nc6 {[%clk 0:02:54.8]} 11. O-O {[%clk
0:02:55.2]} 11... Bxf3 {[%clk 0:02:51]} 12. Bxf3 {[%clk 0:02:55.3]} 12... e5
{[%clk 0:02:51.2]} 13. d5 {[%clk 0:02:54.1]} 13... Nd4 {[%clk 0:02:46.5]} 14.
Bxd4 {[%clk 0:02:53.7]} 14... exd4 {[%clk 0:02:47.4]} 15. Nb5 {[%clk 0:02:52.5]}
15... Qf6 {[%clk 0:02:35.1]} 16. Qd3 {[%clk 0:02:47.7]} 16... a6 {[%clk
0:02:34]} 17. Na3 {[%clk 0:02:43.7]} 17... Nd7 {[%clk 0:02:32.8]} 18. Nc2 {[%clk
0:02:42.6]} 18... Ne5 {[%clk 0:02:28.4]} 19. Qe4 {[%clk 0:02:41.8]} 19... Nxf3+
{[%clk 0:02:27.8]} 20. gxf3 {[%clk 0:02:41.2]} 20... Rfe8 {[%clk 0:02:19.6]} 21.
Qd3 {[%clk 0:02:38.3]} 21... Qg5+ {[%clk 0:01:55.7]} 22. Kh1 {[%clk 0:02:22.3]}
22... Qf4 {[%clk 0:01:54.4]} 23. Rg1 {[%clk 0:02:03.6]} 23... Be5 {[%clk
0:01:42.4]} 24. Rg3 {[%clk 0:01:51]} 24... Re7 {[%clk 0:01:35.2]} 25. Re1 {[%clk
0:01:42.5]} 25... Rae8 {[%clk 0:01:34.1]} 26. Re4 {[%clk 0:01:27.7]} 26... Qh6
{[%clk 0:01:32.8]} 27. Rg2 {[%clk 0:01:22.9]} 27... f5 {[%clk 0:01:30.6]} 28.
Re1 {[%clk 0:01:19.5]} 28... Bxh2 {[%clk 0:01:18.9]} 29. Rxe7 {[%clk 0:01:19.2]}
29... Bf4+ {[%clk 0:01:16.8]} 30. Kg1 {[%clk 0:01:19.2]} 30... Rxe7 {[%clk
0:01:16.7]} 31. Qxd4 {[%clk 0:01:17.9]} 31... Be5 {[%clk 0:01:01.6]} 32. Qd1
{[%clk 0:01:10.3]} 32... Qf4 {[%clk 0:00:52.5]} 33. Ne3 {[%clk 0:01:07.5]} 33...
Bd4 {[%clk 0:00:45.4]} 34. Nf1 {[%clk 0:01:05.6]} 34... Bc3 {[%clk 0:00:42.1]}
35. Qd3 {[%clk 0:01:03.6]} 35... Bb4 {[%clk 0:00:26.9]} 36. Ne3 {[%clk
0:00:54.5]} 36... Bc5 {[%clk 0:00:26.6]} 37. Nf1 {[%clk 0:00:51.6]} 37... Qd4
{[%clk 0:00:26.3]} 38. Qxd4 {[%clk 0:00:50.8]} 38... Bxd4 {[%clk 0:00:26.2]} 39.
Rg3 {[%clk 0:00:40.1]} 39... Re1 {[%clk 0:00:25.8]} 40. Kg2 {[%clk 0:00:39.8]}
40... Re2 {[%clk 0:00:25.9]} 41. Nh2 {[%clk 0:00:32.1]} 41... Rxf2+ {[%clk
0:00:26.1]} 42. Kh3 {[%clk 0:00:31.7]} 42... Rxa2 {[%clk 0:00:25.4]} 43. f4
{[%clk 0:00:30.2]} 43... Rb2 {[%clk 0:00:24.5]} 44. Nf3 {[%clk 0:00:30.1]} 44...
Bf2 {[%clk 0:00:24]} 45. Rg2 {[%clk 0:00:30.5]} 45... Be3 {[%clk 0:00:20.5]} 46.
Rxb2 {[%clk 0:00:30.2]} 46... Bxf4 {[%clk 0:00:20.5]} 47. b4 {[%clk 0:00:30]}
47... g5 {[%clk 0:00:15.9]} 48. Nd4 {[%clk 0:00:30.3]} 48... g4+ {[%clk
0:00:15.8]} 49. Kg2 {[%clk 0:00:30.4]} 49... Be5 {[%clk 0:00:15.6]} 50. Rd2
{[%clk 0:00:30.5]} 50... b5 {[%clk 0:00:14.2]} 51. c5 {[%clk 0:00:29.6]} 51...
dxc5 {[%clk 0:00:13.7]} 52. bxc5 {[%clk 0:00:30.5]} 52... f4 {[%clk 0:00:12.4]}
53. d6 {[%clk 0:00:29.4]} 53... f3+ {[%clk 0:00:12.5]} 54. Nxf3 {[%clk
0:00:29.3]} 54... gxf3+ {[%clk 0:00:12.4]} 55. Kxf3 {[%clk 0:00:30.2]} 55... Kf7
{[%clk 0:00:11.6]} 56. d7 {[%clk 0:00:30.4]} 56... Bc7 {[%clk 0:00:11.2]} 57.
d8=Q {[%clk 0:00:30.3]} 57... Bxd8 {[%clk 0:00:12.1]} 58. Rxd8 {[%clk
0:00:30.5]} 58... a5 {[%clk 0:00:12]} 59. c6 {[%clk 0:00:29.7]} 59... Ke7 {[%clk
0:00:11.6]} 60. c7 {[%clk 0:00:30.6]} 1-0

[Event "*** Titled Tuesday Blitz"]
[Site "Chess.com"]
[Date "2020.11.10"]
[Round "7"]
[White "gilbert_gm"]
[Black "ErikRonka"]
[Result "1-0"]
[WhiteElo "2543"]
[BlackElo "2396"]
[TimeControl "180+1"]
[EndTime "11:22:43 PST"]
[Termination "gilbert_gm won by resignation"]

1. e4 {[%clk 0:02:21.6]} 1... c6 {[%clk 0:02:59.5]} 2. Nc3 {[%clk 0:02:22.5]}
2... d5 {[%clk 0:03:00.3]} 3. d3 {[%clk 0:02:21.6]} 3... dxe4 {[%clk 0:02:59.3]}
4. dxe4 {[%clk 0:02:21.2]} 4... Qxd1+ {[%clk 0:03:00.2]} 5. Nxd1 {[%clk
0:02:21.9]} 5... e5 {[%clk 0:03:00]} 6. Bc4 {[%clk 0:02:20]} 6... Bc5 {[%clk
0:02:52.9]} 7. Be3 {[%clk 0:02:18.4]} 7... Bxe3 {[%clk 0:02:49.1]} 8. Nxe3
{[%clk 0:02:19.3]} 8... Ke7 {[%clk 0:02:36.2]} 9. Nf3 {[%clk 0:02:16.8]} 9... f6
{[%clk 0:02:34.3]} 10. O-O-O {[%clk 0:02:12.9]} 10... Nh6 {[%clk 0:02:33]} 11.
Ne1 {[%clk 0:02:05.6]} 11... Be6 {[%clk 0:02:32.4]} 12. Nd3 {[%clk 0:01:58.6]}
12... Nd7 {[%clk 0:02:30.4]} 13. f3 {[%clk 0:01:56.3]} 13... g6 {[%clk
0:02:21.4]} 14. a4 {[%clk 0:01:53.3]} 14... a5 {[%clk 0:02:16.7]} 15. b3 {[%clk
0:01:42.8]} 15... Nf7 {[%clk 0:02:15.2]} 16. Nb2 {[%clk 0:01:38.4]} 16... h5
{[%clk 0:01:52.2]} 17. Rd2 {[%clk 0:01:21.9]} 17... Rhd8 {[%clk 0:01:36.9]} 18.
Rhd1 {[%clk 0:01:15.3]} 18... Nc5 {[%clk 0:00:51.6]} 19. Bxe6 {[%clk 0:01:13.1]}
19... Nxe6 {[%clk 0:00:46.5]} 20. c3 {[%clk 0:01:10.9]} 20... Rxd2 {[%clk
0:00:33.7]} 21. Rxd2 {[%clk 0:01:11.8]} 21... Nc7 {[%clk 0:00:30.8]} 22. Nbc4
{[%clk 0:01:08.3]} 22... b5 {[%clk 0:00:28.4]} 23. axb5 {[%clk 0:01:01]} 23...
cxb5 {[%clk 0:00:29.3]} 24. Nb6 {[%clk 0:00:59.2]} 24... Rd8 {[%clk 0:00:29.7]}
25. Ned5+ {[%clk 0:00:56.2]} 25... Nxd5 {[%clk 0:00:29]} 26. Nxd5+ {[%clk
0:00:57.1]} 26... Ke8 {[%clk 0:00:12.6]} 27. Nxf6+ {[%clk 0:00:48.1]} 27... Ke7
{[%clk 0:00:12.7]} 28. Nd5+ {[%clk 0:00:48.4]} 28... Kf8 {[%clk 0:00:12.7]} 29.
Nc7 {[%clk 0:00:41.8]} 29... Rc8 {[%clk 0:00:11.4]} 30. Nxb5 {[%clk 0:00:41.3]}
30... h4 {[%clk 0:00:09.7]} 31. Kb2 {[%clk 0:00:35.3]} 31... Ng5 {[%clk
0:00:09.5]} 32. Rd3 {[%clk 0:00:31.5]} 32... Ne6 {[%clk 0:00:08.6]} 33. g3
{[%clk 0:00:30.7]} 33... hxg3 {[%clk 0:00:08]} 34. hxg3 {[%clk 0:00:31.6]} 34...
Nc5 {[%clk 0:00:07.3]} 35. Rd5 {[%clk 0:00:31.8]} 35... a4 {[%clk 0:00:07.3]}
36. b4 {[%clk 0:00:30.3]} 36... Nb3 {[%clk 0:00:07.2]} 37. Ka3 {[%clk
0:00:16.1]} 37... Nc1 {[%clk 0:00:03.7]} 38. Rd1 {[%clk 0:00:14.8]} 38... Ne2
{[%clk 0:00:03.7]} 39. Kxa4 {[%clk 0:00:14]} 39... Nxc3+ {[%clk 0:00:03.2]} 40.
Nxc3 {[%clk 0:00:12.8]} 40... Rxc3 {[%clk 0:00:03.1]} 41. b5 {[%clk 0:00:13.7]}
41... Rxf3 {[%clk 0:00:03.2]} 42. b6 {[%clk 0:00:14]} 42... Rf2 {[%clk
0:00:02.3]} 43. b7 {[%clk 0:00:11.6]} 43... Rb2 {[%clk 0:00:01.7]} 44. Rd8+
{[%clk 0:00:11.3]} 44... Ke7 {[%clk 0:00:01.8]} 45. b8=Q {[%clk 0:00:12.2]}
45... Rxb8 {[%clk 0:00:01.9]} 46. Rxb8 {[%clk 0:00:12.9]} 46... Kf6 {[%clk
0:00:02.8]} 47. Rb3 {[%clk 0:00:11.8]} 47... Kg5 {[%clk 0:00:03]} 48. Kb5 {[%clk
0:00:12.7]} 48... Kg4 {[%clk 0:00:03.4]} 49. Kc5 {[%clk 0:00:13.4]} 49... g5
{[%clk 0:00:04.3]} 50. Kd5 {[%clk 0:00:13.9]} 1-0

[Event "*** Titled Tuesday Blitz"]
[Site "Chess.com"]
[Date "2020.11.10"]
[Round "7"]
[White "Marcin"]
[Black "Meri-Arabidze"]
[Result "0-1"]
[WhiteElo "2481"]
[BlackElo "2620"]
[TimeControl "180+1"]
[EndTime "11:22:44 PST"]
[Termination "Meri-Arabidze won on time"]

1. d4 {[%clk 0:03:00.9]} 1... d5 {[%clk 0:02:59.9]} 2. c4 {[%clk 0:02:59.6]}
2... e6 {[%clk 0:03:00.2]} 3. Nf3 {[%clk 0:02:57.7]} 3... Nf6 {[%clk 0:03:00.7]}
4. Nc3 {[%clk 0:02:55.1]} 4... Nbd7 {[%clk 0:03:01.3]} 5. Bf4 {[%clk 0:02:49.7]}
5... dxc4 {[%clk 0:03:00.4]} 6. e4 {[%clk 0:02:48.9]} 6... Bb4 {[%clk
0:02:57.3]} 7. Bxc4 {[%clk 0:02:32.6]} 7... Nxe4 {[%clk 0:02:56.5]} 8. O-O
{[%clk 0:02:33.2]} 8... Nxc3 {[%clk 0:02:43.8]} 9. bxc3 {[%clk 0:02:33.3]} 9...
Bd6 {[%clk 0:02:44.3]} 10. Bg5 {[%clk 0:02:24.7]} 10... Be7 {[%clk 0:02:44.4]}
11. Bxe7 {[%clk 0:02:14.1]} 11... Qxe7 {[%clk 0:02:45.3]} 12. Re1 {[%clk
0:01:56.1]} 12... Nb6 {[%clk 0:02:34.1]} 13. Bd3 {[%clk 0:01:51.6]} 13... Bd7
{[%clk 0:02:34.1]} 14. a4 {[%clk 0:01:43]} 14... a5 {[%clk 0:02:21.3]} 15. Ne5
{[%clk 0:01:34.1]} 15... g6 {[%clk 0:02:15.9]} 16. Be4 {[%clk 0:01:03.7]} 16...
Rb8 {[%clk 0:02:06.3]} 17. c4 {[%clk 0:01:03.1]} 17... O-O {[%clk 0:02:03.1]}
18. c5 {[%clk 0:01:01.2]} 18... Nc8 {[%clk 0:01:54.7]} 19. Qf3 {[%clk
0:00:59.2]} 19... b6 {[%clk 0:01:44.9]} 20. c6 {[%clk 0:00:38.8]} 20... Be8
{[%clk 0:01:44.3]} 21. Rac1 {[%clk 0:00:34.4]} 21... Nd6 {[%clk 0:01:43.2]} 22.
Bb1 {[%clk 0:00:34.2]} 22... Qg5 {[%clk 0:01:31.8]} 23. g3 {[%clk 0:00:28.9]}
23... Rd8 {[%clk 0:01:30.3]} 24. h4 {[%clk 0:00:28.9]} 24... Qe7 {[%clk
0:01:23.7]} 25. Ng4 {[%clk 0:00:24.8]} 25... f5 {[%clk 0:00:48.1]} 26. Ne5
{[%clk 0:00:22.1]} 26... Kg7 {[%clk 0:00:47.4]} 27. Ba2 {[%clk 0:00:21.2]} 27...
Rf6 {[%clk 0:00:44.3]} 28. h5 {[%clk 0:00:20.3]} 28... g5 {[%clk 0:00:41.8]} 29.
Nd3 {[%clk 0:00:19.2]} 29... h6 {[%clk 0:00:40.4]} 30. Rc2 {[%clk 0:00:18.2]}
30... Bf7 {[%clk 0:00:40.3]} 31. Rce2 {[%clk 0:00:18.2]} 31... Ne4 {[%clk
0:00:40.4]} 32. Qe3 {[%clk 0:00:18]} 32... Qd6 {[%clk 0:00:38.9]} 33. d5 {[%clk
0:00:12.3]} 33... exd5 {[%clk 0:00:38.1]} 34. Qd4 {[%clk 0:00:12.9]} 34... Kh7
{[%clk 0:00:34.5]} 35. Kg2 {[%clk 0:00:04.6]} 35... Bg8 {[%clk 0:00:32.1]} 36.
f4 {[%clk 0:00:03.6]} 36... Rdf8 {[%clk 0:00:27.4]} 37. Ne5 {[%clk 0:00:03.4]}
37... Be6 {[%clk 0:00:24.8]} 38. fxg5 {[%clk 0:00:01.9]} 38... hxg5 {[%clk
0:00:24.3]} 39. Rf1 {[%clk 0:00:02.1]} 39... f4 {[%clk 0:00:23.1]} 40. gxf4
{[%clk 0:00:01.7]} 40... gxf4 {[%clk 0:00:23.3]} 41. Kf3 {[%clk 0:00:01.7]}
41... Ng5+ {[%clk 0:00:22.7]} 42. Kf2 {[%clk 0:00:02.1]} 42... f3 {[%clk
0:00:22.5]} 43. Re3 {[%clk 0:00:02.2]} 43... Ne4+ {[%clk 0:00:22.1]} 44. Rxe4
{[%clk 0:00:02.6]} 44... dxe4 {[%clk 0:00:22.7]} 45. Qxd6 {[%clk 0:00:02.2]}
45... cxd6 {[%clk 0:00:23.6]} 46. Bxe6 {[%clk 0:00:01.1]} 46... Rxe6 {[%clk
0:00:23.1]} 47. Nd7 {[%clk 0:00:01.2]} 47... e3+ {[%clk 0:00:23.3]} 48. Kg3
{[%clk 0:00:01.1]} 48... Rg8+ {[%clk 0:00:23.2]} 49. Kh4 {[%clk 0:00:01.7]}
49... e2 {[%clk 0:00:23.7]} 0-1

[Event "*** Titled Tuesday Blitz"]
[Site "Chess.com"]
[Date "2020.11.10"]
[Round "7"]
[White "lider34"]
[Black "Savagelittlemole"]
[Result "1/2-1/2"]
[WhiteElo "2418"]
[BlackElo "2568"]
[TimeControl "180+1"]
[EndTime "11:22:44 PST"]
[Termination "Game drawn by stalemate"]

1. e4 {[%clk 0:03:00.9]} 1... c5 {[%clk 0:02:59.6]} 2. c3 {[%clk 0:03:00.1]}
2... Nf6 {[%clk 0:02:58.3]} 3. e5 {[%clk 0:02:59.5]} 3... Nd5 {[%clk 0:02:58.8]}
4. d4 {[%clk 0:03:00]} 4... cxd4 {[%clk 0:02:58.8]} 5. Nf3 {[%clk 0:02:59.9]}
5... Nc6 {[%clk 0:02:59.4]} 6. Bc4 {[%clk 0:02:57.6]} 6... Nb6 {[%clk
0:02:59.3]} 7. Bb3 {[%clk 0:02:57.6]} 7... d6 {[%clk 0:02:55.8]} 8. exd6 {[%clk
0:02:57.4]} 8... Qxd6 {[%clk 0:02:55.2]} 9. O-O {[%clk 0:02:57.1]} 9... g6
{[%clk 0:02:55.4]} 10. Na3 {[%clk 0:02:10.7]} 10... a6 {[%clk 0:02:54.9]} 11.
cxd4 {[%clk 0:02:05.3]} 11... Bg7 {[%clk 0:02:54]} 12. Be3 {[%clk 0:01:58.5]}
12... O-O {[%clk 0:02:53.2]} 13. h3 {[%clk 0:01:53.8]} 13... Bf5 {[%clk
0:02:50.1]} 14. d5 {[%clk 0:01:43.2]} 14... Ne5 {[%clk 0:02:48.6]} 15. Bf4
{[%clk 0:01:33.3]} 15... Nxf3+ {[%clk 0:02:46]} 16. Qxf3 {[%clk 0:01:33.2]}
16... Be5 {[%clk 0:02:41.3]} 17. Bxe5 {[%clk 0:01:31.5]} 17... Qxe5 {[%clk
0:02:42.2]} 18. Qc3 {[%clk 0:01:18.3]} 18... Qd6 {[%clk 0:02:35.6]} 19. Qd4
{[%clk 0:01:11.2]} 19... Rac8 {[%clk 0:02:34.9]} 20. Rac1 {[%clk 0:01:09.2]}
20... Rxc1 {[%clk 0:02:34]} 21. Rxc1 {[%clk 0:01:08.9]} 21... Rc8 {[%clk
0:02:34.6]} 22. Rxc8+ {[%clk 0:01:07.6]} 22... Bxc8 {[%clk 0:02:35.5]} 23. Nc4
{[%clk 0:01:05.1]} 23... Nxc4 {[%clk 0:02:35.1]} 24. Bxc4 {[%clk 0:01:04]} 24...
b5 {[%clk 0:02:32.9]} 25. Bb3 {[%clk 0:00:58.5]} 25... Bb7 {[%clk 0:02:33]} 26.
Qd1 {[%clk 0:00:49.1]} 26... Qe5 {[%clk 0:02:26.5]} 27. Qd2 {[%clk 0:00:48.4]}
27... Kg7 {[%clk 0:02:18.8]} 28. f4 {[%clk 0:00:40.2]} 28... Qd6 {[%clk
0:02:17.8]} 29. Qd4+ {[%clk 0:00:39.3]} 29... f6 {[%clk 0:02:17.9]} 30. Qe4
{[%clk 0:00:28.7]} 30... Kf8 {[%clk 0:02:11]} 31. Kf2 {[%clk 0:00:28.4]} 31...
Qc5+ {[%clk 0:02:09.5]} 32. Qe3 {[%clk 0:00:27.9]} 32... Qxe3+ {[%clk
0:02:06.9]} 33. Kxe3 {[%clk 0:00:27.4]} 33... Ke8 {[%clk 0:02:07.2]} 34. Kd4
{[%clk 0:00:27]} 34... Kd7 {[%clk 0:02:06.9]} 35. Kc5 {[%clk 0:00:26.6]} 35...
Kc7 {[%clk 0:02:07.3]} 36. a4 {[%clk 0:00:25.7]} 36... bxa4 {[%clk 0:02:03.4]}
37. Bxa4 {[%clk 0:00:25.4]} 37... h6 {[%clk 0:02:01.3]} 38. b4 {[%clk
0:00:24.4]} 38... Bc8 {[%clk 0:01:52.5]} 39. b5 {[%clk 0:00:23.3]} 39... axb5
{[%clk 0:01:47.3]} 40. Bxb5 {[%clk 0:00:23.3]} 40... Bd7 {[%clk 0:01:44.4]} 41.
Bd3 {[%clk 0:00:22.4]} 41... g5 {[%clk 0:01:43.2]} 42. fxg5 {[%clk 0:00:22.4]}
42... hxg5 {[%clk 0:01:41]} 43. Be4 {[%clk 0:00:21.6]} 43... f5 {[%clk
0:01:35.9]} 44. Bd3 {[%clk 0:00:21]} 44... f4 {[%clk 0:01:32.8]} 45. Be4 {[%clk
0:00:21]} 45... Bc8 {[%clk 0:01:32.4]} 46. Bd3 {[%clk 0:00:20.6]} 46... Bb7
{[%clk 0:01:31.2]} 47. Be4 {[%clk 0:00:19.2]} 47... Ba6 {[%clk 0:01:31.4]} 48.
Bf3 {[%clk 0:00:18.6]} 48... Bd3 {[%clk 0:01:30.8]} 49. Kd4 {[%clk 0:00:17.4]}
49... Bc2 {[%clk 0:01:28.7]} 50. Ke5 {[%clk 0:00:17.1]} 50... Kd7 {[%clk
0:01:19.4]} 51. Bg4+ {[%clk 0:00:16.4]} 51... Kd8 {[%clk 0:01:19.8]} 52. d6
{[%clk 0:00:15.4]} 52... exd6+ {[%clk 0:01:18.3]} 53. Kxd6 {[%clk 0:00:15.4]}
53... Be4 {[%clk 0:01:14.9]} 54. Bf3 {[%clk 0:00:15.2]} 54... Bf5 {[%clk
0:01:01.3]} 55. Ke5 {[%clk 0:00:14.9]} 55... Bxh3 {[%clk 0:00:48.5]} 56. gxh3
{[%clk 0:00:14]} 56... Ke7 {[%clk 0:00:49.1]} 57. Kf5 {[%clk 0:00:13.9]} 57...
Kf7 {[%clk 0:00:49.3]} 58. Kxg5 {[%clk 0:00:14]} 58... Kg7 {[%clk 0:00:49.8]}
59. Kxf4 {[%clk 0:00:13.9]} 59... Kh8 {[%clk 0:00:50.3]} 60. h4 {[%clk
0:00:13.8]} 60... Kg7 {[%clk 0:00:50.7]} 61. h5 {[%clk 0:00:13.9]} 61... Kh8
{[%clk 0:00:51.3]} 62. Kg5 {[%clk 0:00:14]} 62... Kg7 {[%clk 0:00:51.6]} 63. h6+
{[%clk 0:00:14.1]} 63... Kh8 {[%clk 0:00:52.5]} 64. Kg6 {[%clk 0:00:14.2]} 64...
Kg8 {[%clk 0:00:52.7]} 65. Kf6 {[%clk 0:00:13.6]} 65... Kh8 {[%clk 0:00:53.6]}
66. Be2 {[%clk 0:00:13.5]} 66... Kh7 {[%clk 0:00:54.1]} 67. Kg5 {[%clk
0:00:12.5]} 67... Kh8 {[%clk 0:00:54.6]} 68. Bd3 {[%clk 0:00:12.5]} 68... Kg8
{[%clk 0:00:54.3]} 69. h7+ {[%clk 0:00:12.5]} 69... Kh8 {[%clk 0:00:55.2]} 70.
Kh6 {[%clk 0:00:12.3]} 1/2-1/2

[Event "*** Titled Tuesday Blitz"]
[Site "Chess.com"]
[Date "2020.11.10"]
[Round "7"]
[White "Tashik"]
[Black "kamilianin235"]
[Result "1/2-1/2"]
[WhiteElo "2461"]
[BlackElo "2191"]
[TimeControl "180+1"]
[EndTime "11:22:46 PST"]
[Termination "Game drawn by repetition"]

1. c4 {[%clk 0:03:00.9]} 1... e5 {[%clk 0:02:59]} 2. Nc3 {[%clk 0:03:00.5]} 2...
Nf6 {[%clk 0:02:57.8]} 3. Nf3 {[%clk 0:03:00.5]} 3... Nc6 {[%clk 0:02:53.4]} 4.
e4 {[%clk 0:03:00]} 4... g6 {[%clk 0:02:47.6]} 5. d4 {[%clk 0:02:57.9]} 5...
exd4 {[%clk 0:02:46.8]} 6. Nxd4 {[%clk 0:02:58.8]} 6... d6 {[%clk 0:02:42]} 7.
Nxc6 {[%clk 0:02:54.9]} 7... bxc6 {[%clk 0:02:38.8]} 8. g3 {[%clk 0:02:48]} 8...
Bg7 {[%clk 0:02:35.3]} 9. Bg2 {[%clk 0:02:48.1]} 9... O-O {[%clk 0:02:07.1]} 10.
O-O {[%clk 0:02:47.9]} 10... Be6 {[%clk 0:02:02]} 11. Qa4 {[%clk 0:02:38.1]}
11... Nd7 {[%clk 0:01:55.6]} 12. Be3 {[%clk 0:01:52.3]} 12... Ne5 {[%clk
0:01:48.8]} 13. b3 {[%clk 0:01:46.5]} 13... Nxc4 {[%clk 0:01:44.2]} 14. bxc4
{[%clk 0:01:44.3]} 14... Bxc3 {[%clk 0:01:44]} 15. Rac1 {[%clk 0:01:44.9]} 15...
Bg7 {[%clk 0:01:43.3]} 16. Qxc6 {[%clk 0:01:44.8]} 16... Rb8 {[%clk 0:01:34.6]}
17. Rc2 {[%clk 0:01:38.1]} 17... Qe7 {[%clk 0:01:23.7]} 18. Bxa7 {[%clk
0:01:11.2]} 18... Ra8 {[%clk 0:01:19]} 19. Qb7 {[%clk 0:00:59.8]} 19... Qd7
{[%clk 0:00:55.5]} 20. Rfc1 {[%clk 0:00:27.4]} 20... Qa4 {[%clk 0:00:50.4]} 21.
Be3 {[%clk 0:00:26]} 21... Rfc8 {[%clk 0:00:43.9]} 22. Qb3 {[%clk 0:00:24.1]}
22... Qxb3 {[%clk 0:00:35.3]} 23. axb3 {[%clk 0:00:25]} 23... Rcb8 {[%clk
0:00:34.2]} 24. e5 {[%clk 0:00:21]} 24... Ra3 {[%clk 0:00:32.7]} 25. exd6 {[%clk
0:00:20.3]} 25... cxd6 {[%clk 0:00:32.1]} 26. Bf4 {[%clk 0:00:18.7]} 26... Raxb3
{[%clk 0:00:19.6]} 27. Bxd6 {[%clk 0:00:17.9]} 27... Rc8 {[%clk 0:00:19.5]} 28.
c5 {[%clk 0:00:18.4]} 28... Bf8 {[%clk 0:00:18.7]} 29. h4 {[%clk 0:00:15.8]}
29... Bxd6 {[%clk 0:00:16]} 30. cxd6 {[%clk 0:00:16.7]} 30... Rxc2 {[%clk
0:00:14.6]} 31. Rxc2 {[%clk 0:00:16.5]} 31... Rd3 {[%clk 0:00:15.2]} 32. Rc6
{[%clk 0:00:14.8]} 32... Bd7 {[%clk 0:00:13.5]} 33. Rb6 {[%clk 0:00:14.1]} 33...
Kg7 {[%clk 0:00:12.8]} 34. Be4 {[%clk 0:00:13.6]} 34... Rd4 {[%clk 0:00:11.6]}
35. Bf3 {[%clk 0:00:12.6]} 35... Kf6 {[%clk 0:00:10.9]} 36. Kg2 {[%clk
0:00:11.7]} 36... Ke5 {[%clk 0:00:10]} 37. Ra6 {[%clk 0:00:10.4]} 37... Rxd6
{[%clk 0:00:09.6]} 38. Rxd6 {[%clk 0:00:10]} 38... Kxd6 {[%clk 0:00:09.5]} 39.
Be4 {[%clk 0:00:09.5]} 39... Bc6 {[%clk 0:00:09]} 40. Bxc6 {[%clk 0:00:07.5]}
40... Kxc6 {[%clk 0:00:09.9]} 41. Kf3 {[%clk 0:00:08]} 41... Kd6 {[%clk
0:00:10.1]} 42. Kf4 {[%clk 0:00:07.6]} 42... f6 {[%clk 0:00:09.7]} 43. Ke4
{[%clk 0:00:04.7]} 43... Ke6 {[%clk 0:00:09.4]} 44. f4 {[%clk 0:00:04.9]} 44...
f5+ {[%clk 0:00:06.9]} 45. Kd4 {[%clk 0:00:04.8]} 45... Kd6 {[%clk 0:00:06.8]}
46. Kc4 {[%clk 0:00:04.8]} 46... Kc6 {[%clk 0:00:07]} 47. Kd4 {[%clk 0:00:05.2]}
47... Kd6 {[%clk 0:00:07]} 48. Kc4 {[%clk 0:00:05.7]} 48... Kc6 {[%clk
0:00:06.9]} 49. Kd4 {[%clk 0:00:06.1]} 49... Kd6 {[%clk 0:00:07.1]} 1/2-1/2